[Event "Titled Tuesday Blitz September 27 Late 2022"]
[White "Morales Santos, Natasha"]
[Black "Rios Escobar, Adan"]
[WhiteFideId "3101703"]
[BlackFideId "3403645"]
[WhiteElo "1589"]
[BlackElo "2321"]
[Result "0-1"]
[Round "10"]
[TimeControl "180+1"]
[Date "2022.09.28"]
[WhiteClock "0:00:02"]
[BlackClock "0:00:19"]

1. d4 {[%clk 0:03:00]}  Nf6 {[%clk 0:02:59]} 2. c4 {[%clk 0:02:59]}  g6 {[%clk 0:03:00]} 3. Nc3 {[%clk 0:02:56]}  Bg7 {[%clk 0:03:00]} 4. e4 {[%clk 0:02:55]}  d6 {[%clk 0:03:00]} 5. h3 {[%clk 0:02:54]}  O-O {[%clk 0:03:00]} 6. Be3 {[%clk 0:02:54]}  Nc6 {[%clk 0:03:00]} 7. Nge2 {[%clk 0:02:49]}  e5 {[%clk 0:03:00]} 8. d5 {[%clk 0:02:48]}  Nd4 {[%clk 0:03:01]} 9. Nxd4 {[%clk 0:02:43]}  exd4 {[%clk 0:03:02]} 10. Bxd4 {[%clk 0:02:42]}  Nxe4 {[%clk 0:03:01]} 11. Nxe4 {[%clk 0:02:26]}  Qh4 {[%clk 0:03:00]} 12. Bxg7 {[%clk 0:02:09]}  Qxe4+ {[%clk 0:02:58]} 13. Qe2 {[%clk 0:02:04]}  Qxe2+ {[%clk 0:02:56]} 14. Bxe2 {[%clk 0:02:04]}  Kxg7 {[%clk 0:02:57]} 15. Kd2 {[%clk 0:02:04]}  Bd7 {[%clk 0:02:46]} 16. Bf3 {[%clk 0:01:59]}  a5 {[%clk 0:02:43]} 17. Rac1 {[%clk 0:01:57]}  b6 {[%clk 0:02:43]} 18. Kd3 {[%clk 0:01:51]}  Rfe8 {[%clk 0:02:42]} 19. Rhe1 {[%clk 0:01:47]}  Kf8 {[%clk 0:02:39]} 20. h4 {[%clk 0:01:43]}  h6 {[%clk 0:02:36]} 21. g3 {[%clk 0:01:40]}  Rxe1 {[%clk 0:02:34]} 22. Rxe1 {[%clk 0:01:39]}  Re8 {[%clk 0:02:35]} 23. Rxe8+ {[%clk 0:01:37]}  Kxe8 {[%clk 0:02:36]} 24. Kd4 {[%clk 0:01:37]}  Ke7 {[%clk 0:02:36]} 25. b3 {[%clk 0:01:30]}  f5 {[%clk 0:02:34]} 26. a3 {[%clk 0:01:28]}  g5 {[%clk 0:02:32]} 27. hxg5 {[%clk 0:01:27]}  hxg5 {[%clk 0:02:32]} 28. b4 {[%clk 0:01:26]}  axb4 {[%clk 0:02:17]} 29. axb4 {[%clk 0:01:25]}  Ba4 {[%clk 0:02:12]} 30. Be2 {[%clk 0:01:19]}  Kf6 {[%clk 0:02:12]} 31. f4 {[%clk 0:01:18]}  Bc2 {[%clk 0:01:58]} 32. c5 {[%clk 0:01:17]}  bxc5+ {[%clk 0:01:51]} 33. bxc5 {[%clk 0:01:16]}  Bb3 {[%clk 0:01:27]} 34. Bc4 {[%clk 0:01:10]}  Bd1 {[%clk 0:01:17]} 35. cxd6 {[%clk 0:01:06]}  cxd6 {[%clk 0:01:17]} 36. Bb5 {[%clk 0:01:05]}  Kg6 {[%clk 0:01:12]} 37. Be8+ {[%clk 0:01:03]}  Kf6 {[%clk 0:01:10]} 38. Kc4 {[%clk 0:00:56]}  gxf4 {[%clk 0:01:08]} 39. gxf4 {[%clk 0:00:55]}  Ke7 {[%clk 0:01:02]} 40. Bc6 {[%clk 0:00:49]}  Kf6 {[%clk 0:01:01]} 41. Kb5 {[%clk 0:00:48]}  Bc2 {[%clk 0:00:46]} 42. Kb6 {[%clk 0:00:45]}  Ke7 {[%clk 0:00:46]} 43. Kc7 {[%clk 0:00:44]}  Bd3 {[%clk 0:00:46]} 44. Bb7 {[%clk 0:00:41]}  Be4 {[%clk 0:00:44]} 45. Bc6 {[%clk 0:00:39]}  Bf3 {[%clk 0:00:44]} 46. Bb7 {[%clk 0:00:38]}  Be4 {[%clk 0:00:38]} 47. Bc6 {[%clk 0:00:37]}  Bd3 {[%clk 0:00:38]} 48. Bd7 {[%clk 0:00:33]}  Be4 {[%clk 0:00:34]} 49. Be6 {[%clk 0:00:32]}  Bd3 {[%clk 0:00:30]} 50. Kb6 {[%clk 0:00:26]}  Bc2 {[%clk 0:00:27]} 51. Kb5 {[%clk 0:00:25]}  Kf6 {[%clk 0:00:25]} 52. Kc4 {[%clk 0:00:22]}  Kg6 {[%clk 0:00:20]} 53. Kd4 {[%clk 0:00:20]}  Kh5 {[%clk 0:00:18]} 54. Ke3 {[%clk 0:00:16]}  Kg4 {[%clk 0:00:18]} 55. Bf7 {[%clk 0:00:16]}  Kg3 {[%clk 0:00:16]} 56. Bg8 {[%clk 0:00:15]}  Bb3 {[%clk 0:00:16]} 57. Be6 {[%clk 0:00:14]}  Bc2 {[%clk 0:00:16]} 58. Bf7 {[%clk 0:00:14]}  Be4 {[%clk 0:00:17]} 59. Be6 {[%clk 0:00:14]}  Kg2 {[%clk 0:00:16]} 60. Bf7 {[%clk 0:00:13]}  Kf1 {[%clk 0:00:17]} 61. Be6 {[%clk 0:00:12]}  Ke1 {[%clk 0:00:17]} 62. Bf7 {[%clk 0:00:09]}  Kd1 {[%clk 0:00:18]} 63. Be6 {[%clk 0:00:07]}  Kc2 {[%clk 0:00:18]} 64. Kd4 {[%clk 0:00:03]}  Kd2 {[%clk 0:00:19]} 65. Kc4 {[%clk 0:00:02]}  Ke3 {[%clk 0:00:18]} 66. Kb5 {[%clk 0:00:02]}  Kxf4 {[%clk 0:00:19]} 67. Kc6 {[%clk 0:00:02]}  Ke5 {[%clk 0:00:19]} 0-1


[Site "https://www.chess.com"]

[Event "Titled Tuesday Blitz September 27 Late 2022"]
[White "Naroditsky, Daniel"]
[Black "Van Foreest, Jorden"]
[WhiteFideId "2026961"]
[BlackFideId "1039784"]
[WhiteElo "2628"]
[BlackElo "2649"]
[Result "1-0"]
[Round "10"]
[TimeControl "180+1"]
[Date "2022.09.27"]
[WhiteClock "0:00:17"]
[BlackClock "0:00:07"]

1. e4 {[%clk 0:02:54]}  c6 {[%clk 0:02:59]} 2. d4 {[%clk 0:02:40]}  d5 {[%clk 0:03:00]} 3. exd5 {[%clk 0:02:40]}  cxd5 {[%clk 0:03:00]} 4. Bd3 {[%clk 0:02:41]}  Nc6 {[%clk 0:03:00]} 5. c3 {[%clk 0:02:40]}  Nf6 {[%clk 0:03:01]} 6. h3 {[%clk 0:02:41]}  g6 {[%clk 0:03:01]} 7. Nf3 {[%clk 0:02:40]}  Bf5 {[%clk 0:03:01]} 8. O-O {[%clk 0:02:34]}  Bxd3 {[%clk 0:02:57]} 9. Qxd3 {[%clk 0:02:35]}  e6 {[%clk 0:02:58]} 10. Bf4 {[%clk 0:02:34]}  Bd6 {[%clk 0:02:58]} 11. Bxd6 {[%clk 0:02:34]}  Qxd6 {[%clk 0:02:59]} 12. Nbd2 {[%clk 0:02:35]}  Rc8 {[%clk 0:02:53]} 13. Rfe1 {[%clk 0:02:34]}  Kf8 {[%clk 0:02:52]} 14. a4 {[%clk 0:02:31]}  a6 {[%clk 0:02:48]} 15. a5 {[%clk 0:02:25]}  Qc7 {[%clk 0:02:48]} 16. Nb3 {[%clk 0:02:26]}  Kg7 {[%clk 0:02:48]} 17. Nfd2 {[%clk 0:02:07]}  Rhd8 {[%clk 0:02:47]} 18. Re3 {[%clk 0:02:07]}  Ne8 {[%clk 0:02:42]} 19. Nc5 {[%clk 0:02:04]}  Kg8 {[%clk 0:02:33]} 20. b4 {[%clk 0:02:01]}  Ng7 {[%clk 0:02:28]} 21. Rae1 {[%clk 0:01:58]}  Ne7 {[%clk 0:02:22]} 22. Nf3 {[%clk 0:01:55]}  Nef5 {[%clk 0:02:22]} 23. R3e2 {[%clk 0:01:55]}  Re8 {[%clk 0:02:17]} 24. Ne5 {[%clk 0:01:54]}  Nd6 {[%clk 0:02:01]} 25. Ng4 {[%clk 0:01:48]}  Nh5 {[%clk 0:02:01]} 26. Qf3 {[%clk 0:01:42]}  Nf5 {[%clk 0:01:47]} 27. Re5 {[%clk 0:01:39]}  Re7 {[%clk 0:01:41]} 28. Ne3 {[%clk 0:01:28]}  Nhg7 {[%clk 0:01:36]} 29. g4 {[%clk 0:01:08]}  Nxe3 {[%clk 0:01:36]} 30. R1xe3 {[%clk 0:00:57]}  Rf8 {[%clk 0:01:36]} 31. Qf6 {[%clk 0:00:56]}  Ne8 {[%clk 0:01:31]} 32. Qh4 {[%clk 0:00:51]}  Nd6 {[%clk 0:01:30]} 33. Rxd5 {[%clk 0:00:46]}  Nc4 {[%clk 0:01:25]} 34. Re2 {[%clk 0:00:38]}  Rfe8 {[%clk 0:01:21]} 35. Ne4 {[%clk 0:00:32]}  Qf4 {[%clk 0:00:44]} 36. Nf6+ {[%clk 0:00:32]}  Kg7 {[%clk 0:00:41]} 37. Qxh7+ {[%clk 0:00:23]}  Kxf6 {[%clk 0:00:41]} 38. g5+ {[%clk 0:00:23]}  Qxg5+ {[%clk 0:00:41]} 39. Rxg5 {[%clk 0:00:24]}  Kxg5 {[%clk 0:00:41]} 40. Qg7 {[%clk 0:00:18]}  Nd6 {[%clk 0:00:20]} 41. f4+ {[%clk 0:00:17]}  Kxf4 {[%clk 0:00:07]} 42. Qe5+ {[%clk 0:00:17]} 1-0


[Site "https://www.chess.com"]

[Event "Titled Tuesday Blitz September 27 Late 2022"]
[White "Petrosyan, Manuel"]
[Black "Lewtak, Damian"]
[WhiteFideId "13300857"]
[BlackFideId "1141724"]
[WhiteElo "2592"]
[BlackElo "2329"]
[Result "1-0"]
[Round "10"]
[TimeControl "180+1"]
[Date "2022.09.27"]
[WhiteClock "0:01:29"]
[BlackClock "0:00:24"]

1. b3 {[%clk 0:02:57]}  g6 {[%clk 0:02:55]} 2. Bb2 {[%clk 0:02:57]}  Nf6 {[%clk 0:02:55]} 3. Bxf6 {[%clk 0:02:56]}  exf6 {[%clk 0:02:56]} 4. d4 {[%clk 0:02:56]}  Bg7 {[%clk 0:02:55]} 5. e3 {[%clk 0:02:55]}  b6 {[%clk 0:02:54]} 6. c4 {[%clk 0:02:55]}  Bb7 {[%clk 0:02:54]} 7. Nc3 {[%clk 0:02:56]}  f5 {[%clk 0:02:53]} 8. Nf3 {[%clk 0:02:53]}  d6 {[%clk 0:02:52]} 9. g3 {[%clk 0:02:53]}  Nd7 {[%clk 0:02:52]} 10. Bg2 {[%clk 0:02:53]}  Qc8 {[%clk 0:02:51]} 11. O-O {[%clk 0:02:53]}  O-O {[%clk 0:02:51]} 12. Rc1 {[%clk 0:02:53]}  Nf6 {[%clk 0:02:48]} 13. Nd2 {[%clk 0:02:52]}  Bxg2 {[%clk 0:02:47]} 14. Kxg2 {[%clk 0:02:53]}  Qd7 {[%clk 0:02:45]} 15. Nd5 {[%clk 0:02:47]}  Rac8 {[%clk 0:02:34]} 16. b4 {[%clk 0:02:42]}  Nxd5 {[%clk 0:02:17]} 17. cxd5 {[%clk 0:02:42]}  Qb5 {[%clk 0:02:07]} 18. Qb3 {[%clk 0:02:41]}  h5 {[%clk 0:02:04]} 19. a4 {[%clk 0:02:31]}  Qd7 {[%clk 0:02:04]} 20. h4 {[%clk 0:02:28]}  Rfe8 {[%clk 0:02:01]} 21. Rc6 {[%clk 0:02:26]}  Re7 {[%clk 0:01:58]} 22. Rfc1 {[%clk 0:02:25]}  Qd8 {[%clk 0:01:57]} 23. Qc4 {[%clk 0:02:23]}  f4 {[%clk 0:01:49]} 24. exf4 {[%clk 0:02:20]}  Kh7 {[%clk 0:01:44]} 25. Nf3 {[%clk 0:02:19]}  Qe8 {[%clk 0:01:41]} 26. a5 {[%clk 0:02:10]}  bxa5 {[%clk 0:01:40]} 27. bxa5 {[%clk 0:02:11]}  Qd7 {[%clk 0:01:03]} 28. a6 {[%clk 0:02:07]}  Qe8 {[%clk 0:00:59]} 29. Rc2 {[%clk 0:02:07]}  Qd8 {[%clk 0:00:55]} 30. Rb2 {[%clk 0:02:02]}  Qd7 {[%clk 0:00:54]} 31. Rb7 {[%clk 0:02:01]}  Qf5 {[%clk 0:00:43]} 32. Rxa7 {[%clk 0:02:00]}  Rce8 {[%clk 0:00:39]} 33. Rcxc7 {[%clk 0:01:55]}  Re2 {[%clk 0:00:25]} 34. Rxf7 {[%clk 0:01:52]}  Qb1 {[%clk 0:00:23]} 35. Rxg7+ {[%clk 0:01:51]}  Kh8 {[%clk 0:00:24]} 36. Rh7+ {[%clk 0:01:31]}  Kg8 {[%clk 0:00:23]} 37. Rag7+ {[%clk 0:01:32]}  Kf8 {[%clk 0:00:24]} 38. Rb7 {[%clk 0:01:29]} 1-0


[Site "https://www.chess.com"]

[Event "Titled Tuesday Blitz September 27 Late 2022"]
[White "Rose, Felix"]
[Black "Melikyan, Gnel"]
[WhiteFideId "5105722"]
[BlackFideId "54109990"]
[WhiteElo "2039"]
[BlackElo "1772"]
[Result "0-1"]
[Round "10"]
[TimeControl "180+1"]
[Date "2022.09.28"]
[WhiteClock "0:00:05"]
[BlackClock "0:00:10"]

1. e4 {[%clk 0:02:59]}  c6 {[%clk 0:03:00]} 2. d4 {[%clk 0:02:58]}  d5 {[%clk 0:03:01]} 3. e5 {[%clk 0:02:58]}  Bf5 {[%clk 0:03:01]} 4. h4 {[%clk 0:02:59]}  h5 {[%clk 0:03:00]} 5. Bd3 {[%clk 0:02:59]}  e6 {[%clk 0:02:59]} 6. Nf3 {[%clk 0:02:57]}  Nd7 {[%clk 0:02:57]} 7. O-O {[%clk 0:02:54]}  Be7 {[%clk 0:02:56]} 8. Bg5 {[%clk 0:02:52]}  Nf8 {[%clk 0:02:52]} 9. Re1 {[%clk 0:02:46]}  Nh6 {[%clk 0:02:52]} 10. g3 {[%clk 0:02:37]}  Bxg5 {[%clk 0:02:37]} 11. Nxg5 {[%clk 0:02:37]}  g6 {[%clk 0:02:36]} 12. Nc3 {[%clk 0:02:24]}  Qb6 {[%clk 0:02:30]} 13. Ne2 {[%clk 0:02:17]}  Bxd3 {[%clk 0:02:24]} 14. Qxd3 {[%clk 0:02:16]}  Nf5 {[%clk 0:02:24]} 15. c3 {[%clk 0:02:12]}  Qa6 {[%clk 0:02:23]} 16. Qxa6 {[%clk 0:02:07]}  bxa6 {[%clk 0:02:24]} 17. Rac1 {[%clk 0:02:02]}  Nh7 {[%clk 0:02:19]} 18. Nxh7 {[%clk 0:02:00]}  Rxh7 {[%clk 0:02:19]} 19. c4 {[%clk 0:02:00]}  Kd7 {[%clk 0:02:14]} 20. cxd5 {[%clk 0:02:00]}  cxd5 {[%clk 0:02:15]} 21. Rc5 {[%clk 0:01:59]}  Rhh8 {[%clk 0:02:15]} 22. Ra5 {[%clk 0:01:57]}  Rhb8 {[%clk 0:02:14]} 23. b3 {[%clk 0:01:57]}  Rb6 {[%clk 0:02:14]} 24. Rc1 {[%clk 0:01:56]}  Rc8 {[%clk 0:02:14]} 25. Rxc8 {[%clk 0:01:56]}  Kxc8 {[%clk 0:02:15]} 26. Kg2 {[%clk 0:01:51]}  Kb7 {[%clk 0:02:14]} 27. Kf3 {[%clk 0:01:51]}  Rb4 {[%clk 0:02:14]} 28. Ra4 {[%clk 0:01:43]}  Rxa4 {[%clk 0:02:10]} 29. bxa4 {[%clk 0:01:44]}  Kb6 {[%clk 0:02:11]} 30. Kf4 {[%clk 0:01:44]}  Ka5 {[%clk 0:02:08]} 31. Kg5 {[%clk 0:01:44]}  Kxa4 {[%clk 0:02:09]} 32. Kf6 {[%clk 0:01:45]}  Ka3 {[%clk 0:02:09]} 33. Kxf7 {[%clk 0:01:45]}  Kxa2 {[%clk 0:02:09]} 34. Kxe6 {[%clk 0:01:42]}  Kb2 {[%clk 0:02:07]} 35. Kxd5 {[%clk 0:01:42]}  a5 {[%clk 0:02:08]} 36. Kc4 {[%clk 0:01:40]}  a4 {[%clk 0:02:08]} 37. Nc3 {[%clk 0:01:40]}  a3 {[%clk 0:02:07]} 38. d5 {[%clk 0:01:37]}  a5 {[%clk 0:01:58]} 39. d6 {[%clk 0:01:36]}  Ng7 {[%clk 0:01:57]} 40. f3 {[%clk 0:01:27]}  Ne6 {[%clk 0:01:54]} 41. g4 {[%clk 0:01:25]}  Kc2 {[%clk 0:01:41]} 42. gxh5 {[%clk 0:01:23]}  gxh5 {[%clk 0:01:42]} 43. d7 {[%clk 0:01:23]}  Nd8 {[%clk 0:01:34]} 44. f4 {[%clk 0:01:21]}  Nf7 {[%clk 0:01:30]} 45. Kd4 {[%clk 0:01:11]}  Nd8 {[%clk 0:01:28]} 46. f5 {[%clk 0:01:06]}  Nc6+ {[%clk 0:01:28]} 47. Kc5 {[%clk 0:00:59]}  Kxc3 {[%clk 0:01:09]} 48. Kxc6 {[%clk 0:00:57]}  a2 {[%clk 0:01:10]} 49. d8=Q {[%clk 0:00:57]}  a1=Q {[%clk 0:01:11]} 50. e6 {[%clk 0:00:55]}  Qa4+ {[%clk 0:01:08]} 51. Kb7 {[%clk 0:00:51]}  Qe4+ {[%clk 0:01:06]} 52. Kc8 {[%clk 0:00:48]}  Qxf5 {[%clk 0:01:05]} 53. Qc7+ {[%clk 0:00:47]}  Kd4 {[%clk 0:01:00]} 54. Qd7+ {[%clk 0:00:47]}  Ke4 {[%clk 0:00:47]} 55. e7 {[%clk 0:00:47]}  Qc5+ {[%clk 0:00:48]} 56. Kd8 {[%clk 0:00:39]}  Qb6+ {[%clk 0:00:47]} 57. Qc7 {[%clk 0:00:37]}  Qd4+ {[%clk 0:00:47]} 58. Kc8 {[%clk 0:00:32]}  Qh8+ {[%clk 0:00:46]} 59. Kb7 {[%clk 0:00:26]}  Qb2+ {[%clk 0:00:20]} 60. Qb6 {[%clk 0:00:25]}  Qg7 {[%clk 0:00:19]} 61. Qe6+ {[%clk 0:00:20]}  Kf4 {[%clk 0:00:18]} 62. Ka8 {[%clk 0:00:16]}  Qg2+ {[%clk 0:00:17]} 63. Ka7 {[%clk 0:00:10]}  Qf2+ {[%clk 0:00:17]} 64. Ka6 {[%clk 0:00:06]}  Qf1+ {[%clk 0:00:15]} 65. Kb7 {[%clk 0:00:07]}  Qb5+ {[%clk 0:00:15]} 66. Kc8 {[%clk 0:00:06]}  Qe8+ {[%clk 0:00:14]} 67. Kc7 {[%clk 0:00:05]}  Kg3 {[%clk 0:00:10]} 0-1


[Site "https://www.chess.com"]

[Event "Titled Tuesday Blitz September 27 Late 2022"]
[White "Siddharth, Jagadeesh"]
[Black "Nogerbek, Kazybek"]
[WhiteFideId "5818320"]
[BlackFideId "13710427"]
[WhiteElo "2165"]
[BlackElo "2458"]
[Result "0-1"]
[Round "10"]
[TimeControl "180+1"]
[Date "2022.09.27"]
[WhiteClock "0:00:03"]
[BlackClock "0:00:04"]

1. d4 {[%clk 0:03:00]}  Nf6 {[%clk 0:02:39]} 2. c4 {[%clk 0:02:59]}  g6 {[%clk 0:02:39]} 3. Nc3 {[%clk 0:02:59]}  Bg7 {[%clk 0:02:40]} 4. e4 {[%clk 0:02:59]}  d6 {[%clk 0:02:41]} 5. Be2 {[%clk 0:03:00]}  O-O {[%clk 0:02:41]} 6. Be3 {[%clk 0:03:00]}  c5 {[%clk 0:02:42]} 7. d5 {[%clk 0:03:00]}  e6 {[%clk 0:02:42]} 8. Nf3 {[%clk 0:03:00]}  exd5 {[%clk 0:02:42]} 9. cxd5 {[%clk 0:03:01]}  Bg4 {[%clk 0:02:43]} 10. Nd2 {[%clk 0:03:01]}  Bxe2 {[%clk 0:02:44]} 11. Qxe2 {[%clk 0:03:02]}  Nbd7 {[%clk 0:02:44]} 12. O-O {[%clk 0:03:02]}  a6 {[%clk 0:02:43]} 13. a4 {[%clk 0:03:02]}  Re8 {[%clk 0:02:43]} 14. h3 {[%clk 0:03:01]}  Nh5 {[%clk 0:02:41]} 15. g4 {[%clk 0:02:57]}  Nhf6 {[%clk 0:02:39]} 16. Bf4 {[%clk 0:02:54]}  Ne5 {[%clk 0:02:37]} 17. a5 {[%clk 0:02:47]}  h5 {[%clk 0:02:35]} 18. f3 {[%clk 0:02:31]}  b5 {[%clk 0:02:32]} 19. axb6 {[%clk 0:02:22]}  Qxb6 {[%clk 0:02:31]} 20. Bxe5 {[%clk 0:02:21]}  dxe5 {[%clk 0:02:31]} 21. Nc4 {[%clk 0:02:20]}  Qc7 {[%clk 0:02:30]} 22. Qe3 {[%clk 0:01:59]}  hxg4 {[%clk 0:02:27]} 23. hxg4 {[%clk 0:01:59]}  Rab8 {[%clk 0:02:27]} 24. Rxa6 {[%clk 0:01:57]}  Rb4 {[%clk 0:02:26]} 25. Rc6 {[%clk 0:01:41]}  Qd7 {[%clk 0:02:24]} 26. Qxc5 {[%clk 0:01:38]}  Bf8 {[%clk 0:02:17]} 27. Qf2 {[%clk 0:01:22]}  Nh7 {[%clk 0:02:12]} 28. Kg2 {[%clk 0:01:15]}  Ng5 {[%clk 0:02:12]} 29. Rh1 {[%clk 0:01:10]}  Bg7 {[%clk 0:02:01]} 30. Qc5 {[%clk 0:01:00]}  Reb8 {[%clk 0:01:52]} 31. Rc7 {[%clk 0:00:35]}  Qd8 {[%clk 0:01:49]} 32. Rc6 {[%clk 0:00:26]}  Qd7 {[%clk 0:01:29]} 33. Kg3 {[%clk 0:00:20]}  Rb3 {[%clk 0:01:21]} 34. Rc7 {[%clk 0:00:17]}  Qd8 {[%clk 0:01:21]} 35. Qe7 {[%clk 0:00:14]}  Bf8 {[%clk 0:00:39]} 36. Qxd8 {[%clk 0:00:11]}  Rxd8 {[%clk 0:00:40]} 37. Rc6 {[%clk 0:00:12]}  Bb4 {[%clk 0:00:29]} 38. Rc1 {[%clk 0:00:08]}  Kg7 {[%clk 0:00:23]} 39. Rb6 {[%clk 0:00:07]}  Rh8 {[%clk 0:00:15]} 40. Kg2 {[%clk 0:00:05]}  Nh3 {[%clk 0:00:13]} 41. Ne2 {[%clk 0:00:03]}  Ng5 {[%clk 0:00:11]} 42. Ng3 {[%clk 0:00:03]}  Rh3 {[%clk 0:00:10]} 43. Rc2 {[%clk 0:00:03]}  Rxf3 {[%clk 0:00:09]} 44. Nf1 {[%clk 0:00:03]}  Bc5 {[%clk 0:00:07]} 45. Rb5 {[%clk 0:00:02]}  Bd4 {[%clk 0:00:06]} 46. Ncd2 {[%clk 0:00:02]}  Rf4 {[%clk 0:00:06]} 47. Nb3 {[%clk 0:00:02]}  Rxg4+ {[%clk 0:00:06]} 48. Ng3 {[%clk 0:00:01]}  Rgxg3+ {[%clk 0:00:05]} 49. Kf1 {[%clk 0:00:01]}  Rg1+ {[%clk 0:00:05]} 50. Ke2 {[%clk 0:00:02]}  Rg2+ {[%clk 0:00:04]} 51. Kf1 {[%clk 0:00:02]}  Rxc2 {[%clk 0:00:04]} 52. Nxd4 {[%clk 0:00:03]}  Rh1# {[%clk 0:00:04]} 0-1


[Site "https://www.chess.com"]

[Event "Titled Tuesday Blitz September 27 Late 2022"]
[White "Timmermans, Mark"]
[Black "Gunduz, Umut Erdem"]
[WhiteFideId "1026399"]
[BlackFideId "6381383"]
[WhiteElo "2460"]
[BlackElo "2029"]
[Result "1-0"]
[Round "10"]
[TimeControl "180+1"]
[Date "2022.09.27"]
[WhiteClock "0:01:12"]
[BlackClock "0:00:15"]

1. Nf3 {[%clk 0:02:57]}  Nf6 {[%clk 0:02:43]} 2. c4 {[%clk 0:02:57]}  e6 {[%clk 0:02:43]} 3. b3 {[%clk 0:02:57]}  d5 {[%clk 0:02:44]} 4. e3 {[%clk 0:02:57]}  Be7 {[%clk 0:02:14]} 5. Bb2 {[%clk 0:02:56]}  O-O {[%clk 0:02:15]} 6. Qc2 {[%clk 0:02:45]}  a5 {[%clk 0:02:13]} 7. g4 {[%clk 0:02:42]}  a4 {[%clk 0:01:59]} 8. g5 {[%clk 0:02:32]}  Ne4 {[%clk 0:01:45]} 9. h4 {[%clk 0:02:31]}  Nd7 {[%clk 0:01:14]} 10. Be2 {[%clk 0:02:15]}  c6 {[%clk 0:01:13]} 11. d3 {[%clk 0:02:12]}  a3 {[%clk 0:01:07]} 12. Bxg7 {[%clk 0:02:03]}  Kxg7 {[%clk 0:01:01]} 13. dxe4 {[%clk 0:02:02]}  dxe4 {[%clk 0:00:56]} 14. Qxe4 {[%clk 0:02:03]}  Nc5 {[%clk 0:00:51]} 15. Qd4+ {[%clk 0:01:59]}  Qxd4 {[%clk 0:00:51]} 16. exd4 {[%clk 0:02:00]}  Ne4 {[%clk 0:00:51]} 17. Bd3 {[%clk 0:01:57]}  Bb4+ {[%clk 0:00:47]} 18. Ke2 {[%clk 0:01:53]}  Nc3+ {[%clk 0:00:48]} 19. Nxc3 {[%clk 0:01:53]}  Bxc3 {[%clk 0:00:48]} 20. Rad1 {[%clk 0:01:50]}  h6 {[%clk 0:00:47]} 21. gxh6+ {[%clk 0:01:37]}  Kxh6 {[%clk 0:00:47]} 22. Rhg1 {[%clk 0:01:37]}  Bd7 {[%clk 0:00:34]} 23. Ne5 {[%clk 0:01:35]}  Rad8 {[%clk 0:00:28]} 24. h5 {[%clk 0:01:30]}  Bxd4 {[%clk 0:00:25]} 25. Ng4+ {[%clk 0:01:27]}  Kxh5 {[%clk 0:00:22]} 26. Rg2 {[%clk 0:01:27]}  Kg5 {[%clk 0:00:17]} 27. f4+ {[%clk 0:01:12]}  Kxf4 {[%clk 0:00:16]} 28. Rf1+ {[%clk 0:01:12]}  Kg5 {[%clk 0:00:15]} 29. Nf6+ {[%clk 0:01:12]} 1-0


[Site "https://www.chess.com"]

[Event "Titled Tuesday Blitz September 27 Late 2022"]
[White "Toniutti, Ezio"]
[Black "Barria Zuniga, Daniel"]
[WhiteFideId "113034"]
[BlackFideId "3400816"]
[WhiteElo "2215"]
[BlackElo "2414"]
[Result "0-1"]
[Round "10"]
[TimeControl "180+1"]
[Date "2022.09.28"]
[WhiteClock "0:00:08"]
[BlackClock "0:00:04"]

1. d4 {[%clk 0:03:00]}  g6 {[%clk 0:02:55]} 2. c4 {[%clk 0:03:00]}  Bg7 {[%clk 0:02:55]} 3. Nc3 {[%clk 0:03:00]}  c5 {[%clk 0:02:55]} 4. d5 {[%clk 0:03:00]}  Bxc3+ {[%clk 0:02:55]} 5. bxc3 {[%clk 0:02:59]}  Qa5 {[%clk 0:02:56]} 6. Bd2 {[%clk 0:02:59]}  f5 {[%clk 0:02:55]} 7. h4 {[%clk 0:02:57]}  Nf6 {[%clk 0:02:52]} 8. h5 {[%clk 0:02:58]}  Nxh5 {[%clk 0:02:49]} 9. Rxh5 {[%clk 0:02:58]}  gxh5 {[%clk 0:02:49]} 10. e4 {[%clk 0:02:58]}  d6 {[%clk 0:02:47]} 11. Qxh5+ {[%clk 0:02:58]}  Kd8 {[%clk 0:02:47]} 12. Nf3 {[%clk 0:02:52]}  Nd7 {[%clk 0:02:41]} 13. Ng5 {[%clk 0:02:50]}  Nf6 {[%clk 0:02:41]} 14. Qh6 {[%clk 0:02:43]}  Rg8 {[%clk 0:02:28]} 15. Nxh7 {[%clk 0:02:27]}  Rh8 {[%clk 0:02:15]} 16. e5 {[%clk 0:02:06]}  Rxh7 {[%clk 0:02:10]} 17. Qf8+ {[%clk 0:01:59]}  Ne8 {[%clk 0:02:05]} 18. exd6 {[%clk 0:01:59]}  Bd7 {[%clk 0:01:51]} 19. Rb1 {[%clk 0:01:22]}  Qxa2 {[%clk 0:01:20]} 20. Rxb7 {[%clk 0:01:11]}  Qa1+ {[%clk 0:01:07]} 21. Ke2 {[%clk 0:01:09]}  Qa6 {[%clk 0:01:07]} 22. Rxd7+ {[%clk 0:01:03]}  Kxd7 {[%clk 0:01:07]} 23. Qxf5+ {[%clk 0:01:03]}  Kd8 {[%clk 0:00:53]} 24. Qxh7 {[%clk 0:01:02]}  Nxd6 {[%clk 0:00:40]} 25. Qg8+ {[%clk 0:00:45]}  Ne8 {[%clk 0:00:39]} 26. Kd3 {[%clk 0:00:35]}  Qf6 {[%clk 0:00:27]} 27. Be3 {[%clk 0:00:21]}  Rb8 {[%clk 0:00:23]} 28. Be2 {[%clk 0:00:20]}  Qf5+ {[%clk 0:00:22]} 29. Kd2 {[%clk 0:00:15]}  Rb2+ {[%clk 0:00:21]} 30. Ke1 {[%clk 0:00:13]}  Rb1+ {[%clk 0:00:20]} 31. Kd2 {[%clk 0:00:12]}  Rb2+ {[%clk 0:00:19]} 32. Ke1 {[%clk 0:00:12]}  Qc2 {[%clk 0:00:17]} 33. Qg4 {[%clk 0:00:11]}  Qxc3+ {[%clk 0:00:10]} 34. Kf1 {[%clk 0:00:11]}  Rb1+ {[%clk 0:00:09]} 35. Bd1 {[%clk 0:00:11]}  Qd3+ {[%clk 0:00:09]} 36. Ke1 {[%clk 0:00:11]}  Nd6 {[%clk 0:00:08]} 37. Qg8+ {[%clk 0:00:10]}  Kc7 {[%clk 0:00:08]} 38. Qg4 {[%clk 0:00:09]}  Qc3+ {[%clk 0:00:05]} 39. Bd2 {[%clk 0:00:07]}  Qxc4 {[%clk 0:00:04]} 40. Qe6 {[%clk 0:00:07]}  Qe4+ {[%clk 0:00:04]} 41. Qxe4 {[%clk 0:00:06]}  Nxe4 {[%clk 0:00:04]} 42. Ke2 {[%clk 0:00:07]}  Nxd2 {[%clk 0:00:04]} 43. Kxd2 {[%clk 0:00:07]}  Rb2+ {[%clk 0:00:05]} 44. Ke3 {[%clk 0:00:07]}  Kd6 {[%clk 0:00:05]} 45. g4 {[%clk 0:00:08]}  a5 {[%clk 0:00:05]} 46. g5 {[%clk 0:00:07]}  Rb8 {[%clk 0:00:04]} 47. Ba4 {[%clk 0:00:06]}  Kxd5 {[%clk 0:00:04]} 48. f3 {[%clk 0:00:07]}  Ke5 {[%clk 0:00:04]} 49. f4+ {[%clk 0:00:07]}  Kf5 {[%clk 0:00:04]} 50. Bc2+ {[%clk 0:00:08]}  Kg4 {[%clk 0:00:04]} 51. g6 {[%clk 0:00:07]}  Kh5 {[%clk 0:00:05]} 52. Kd3 {[%clk 0:00:07]}  Kxg6 {[%clk 0:00:04]} 53. Kc4+ {[%clk 0:00:08]}  Kf6 {[%clk 0:00:04]} 54. Kxc5 {[%clk 0:00:08]}  Rc8+ {[%clk 0:00:04]} 0-1


[Site "https://www.chess.com"]